fUST/lending_fUST_20240615
["ID","MTS","AMOUNT","RATE_DAILY","PERIOD"]
[329500813,1718400658272,-153.0,0.00017288,2]
[329500815,1718400658287,-216.0,0.00017318,2]
[329500817,1718400658312,-216.0,0.0001746,2]
[329500819,1718400658349,-164.68563506,0.00017533,2]
[329500822,1718400658383,-234.36872739,0.00017533,2]
[329500824,1718400658397,-500.0,0.00017534,2]
[329500825,1718400658435,-151.0,0.00017534,2]
[329500827,1718400658456,-500.0,0.00017534,2]
[329500829,1718400658471,-500.0,0.00017534,2]
[329500831,1718400658493,-500.0,0.00017534,2]
[329500832,1718400658529,-490.49325436,0.00017534,2]
[329500834,1718400658541,-500.0,0.00017534,2]
[329500836,1718400658569,-500.0,0.00017534,2]
[329500838,1718400658581,-151.0,0.00017534,2]
[329500840,1718400658592,-500.0,0.00017534,2]
[329500842,1718400658622,-151.0,0.00017534,2]
[329500844,1718400658633,-151.0,0.00017534,2]
[329500846,1718400658656,-523.16,0.00017534,2]
[329500848,1718400658668,-157.939075,0.00017534,2]
[329500851,1718400658692,-500.0,0.00017534,2]
[329500853,1718400658711,-151.0,0.00017534,2]
[329500855,1718400658733,-151.0,0.00017534,2]
[329500857,1718400658744,-260.394515,0.00017534,2]
[329500858,1718400658761,-735.98,0.00017534,2]
[329500860,1718400658784,-500.0,0.00017534,2]
[329500862,1718400658805,-151.0,0.00017534,2]
[329500864,1718400658824,-151.0,0.00017534,2]
[329500866,1718400658835,-191.77,0.00017534,2]
[329500867,1718400658848,-231.66,0.00017534,2]
[329500870,1718400658860,-1392.44,0.00017534,2]
[329500871,1718400658871,-641.21,0.00017534,2]
[329500873,1718400658891,-151.0,0.00017534,2]
[329500874,1718400658905,-151.0,0.00017534,2]
[329500877,1718400658927,-151.0,0.00017534,2]
[329500879,1718400658968,-151.0,0.00017534,2]
[329500881,1718400658982,-500.0,0.00017534,2]
[329500883,1718400659001,-1267.48,0.00017534,2]
[329500885,1718400659014,-500.0,0.00017534,2]
[329500886,1718400659025,-500.0,0.00017534,2]
[329500888,1718400659038,-500.0,0.00017534,2]
[329500891,1718400659130,-11284.21,0.00017534,2]
[329500894,1718400659199,-1269.9,0.00017534,2]
[329500895,1718400659215,-166.284063,0.00017534,2]
[329500897,1718400659233,-166.284063,0.00017534,2]
[329500899,1718400659249,-151.0,0.00017534,2]
[329500901,1718400659272,-500.0,0.00017534,2]
[329500904,1718400659292,-2680.54,0.00017534,2]
[329500906,1718400659332,-500.0,0.00017534,2]
[329500909,1718400659353,-1759.68,0.00017534,2]
[329500911,1718400659368,-151.0,0.00017534,2]
[329500913,1718400659412,-151.0,0.00017534,2]
[329500915,1718400659425,-500.0,0.00017534,2]
[329500916,1718400659445,-151.0,0.00017534,2]
[329500919,1718400659489,-1935.1,0.00017534,2]
[329500921,1718400659518,-549.51,0.00017534,2]
[329500923,1718400659554,-572.38,0.00017534,2]
[329500925,1718400659576,-568.56,0.00017534,2]
[329500927,1718400659591,-5639.22,0.00017534,2]
[329500929,1718400659606,-151.0,0.00017534,2]
[329500932,1718400659696,-1627.65,0.00017534,2]
[329500934,1718400659736,-500.0,0.00017534,2]
[329500936,1718400659763,-7432.62,0.00017534,2]
[329500938,1718400659784,-500.0,0.00017534,2]
[329500940,1718400659797,-500.0,0.00017534,2]
[329500942,1718400659808,-597.21,0.00017534,2]
[329500944,1718400659848,-408.7,0.00017534,2]
[329500945,1718400659862,-151.0,0.00017534,2]
[329500947,1718400659875,-500.0,0.00017534,2]
[329500949,1718400659893,-549.95,0.00017534,2]
[329500951,1718400659920,-151.0,0.00017534,2]
[329500953,1718400659934,-167.611858,0.00017534,2]
[329500955,1718400659949,-151.0,0.00017534,2]
[329500957,1718400659965,-500.0,0.00017534,2]
[329500959,1718400659981,-167.611858,0.00017534,2]
[329500962,1718400660011,-4588.34,0.00017534,2]
[329500964,1718400660042,-307.41217758,0.00017534,2]
[329500966,1718400660078,-151.0,0.00017534,2]
[329500969,1718400660109,-151.0,0.00017534,2]
[329500970,1718400660141,-986.69,0.00017534,2]
[329500973,1718400660174,-500.84,0.00017534,2]
[329500975,1718400660186,-151.0,0.00017534,2]
[329500977,1718400660214,-151.0,0.00017534,2]
[329500979,1718400660249,-292.64536,0.00017534,2]
[329500981,1718400660281,-292.64536,0.00017534,2]
[329500982,1718400660305,-292.64536,0.00017534,2]
[329500984,1718400660353,-292.64536,0.00017534,2]
[329500986,1718400660409,-1000.0,0.000176,2]
[329500987,1718400660434,-216.0,0.00017602,2]
[329500989,1718400660454,-88888.0,0.00017708,2]
[329500991,1718400660485,-151.0,0.00017708,2]
[329500993,1718400660528,-151.0,0.00017708,2]
[329500995,1718400660569,-151.0,0.00017708,2]
[329500999,1718400660612,-151.0,0.00017708,2]
[329501001,1718400660628,-167.611858,0.00017708,2]
[329501004,1718400660685,-151.0,0.00017708,2]
[329501006,1718400660715,-167.611858,0.00017708,2]
[329501007,1718400660781,-151.0,0.00017708,2]
[329501008,1718400660809,-151.0,0.00017708,2]
[329501011,1718400660860,-216.0,0.00017744,2]
[329501013,1718400660897,-420.0,0.00017752,2]
[329501015,1718400660922,-200.0,0.00017805,2]
[329501017,1718400660949,-2983.37031403,0.00017806,2]
[329501019,1718400661020,-151.0,0.00017806,2]
[329501023,1718400661076,-151.0,0.00017806,2]
[329501024,1718400661091,-221.21606,0.00017806,2]
[329501026,1718400661121,-151.0,0.00017806,2]
[329501028,1718400661149,-2018.61610863,0.00017807,4]
[329501030,1718400661185,-166.284063,0.00017807,2]
[329501032,1718400661204,-166.284063,0.00017807,2]
[329501033,1718400661245,-151.0,0.00017807,2]
[329501036,1718400661332,-151.0,0.00017807,2]
[329501038,1718400661356,-155.913692,0.00017807,2]
[329501040,1718400661383,-500.0,0.00017808,2]
[329501041,1718400661412,-151.0,0.00017808,2]
[329501044,1718400661424,-500.0,0.00017808,2]
[329501046,1718400661457,-500.0,0.00017808,2]
[329501049,1718400661494,-500.0,0.00017808,2]
[329501051,1718400661527,-500.0,0.00017808,2]
[329501053,1718400661544,-500.0,0.00017808,2]
[329501056,1718400661679,-151.0,0.00017808,2]
[329501057,1718400661707,-500.0,0.00017808,2]
[329501058,1718400661750,-523.16,0.00017808,2]
[329501060,1718400661843,-500.0,0.00017808,2]
[329501062,1718400661889,-156.284908,0.00017808,2]
[329501064,1718400661922,-735.98,0.00017808,2]
[329501066,1718400661946,-220.82069625,0.00017808,2]
[329501068,1718400661977,-151.0,0.00017808,2]
[329501070,1718400661989,-1392.44,0.00017808,2]
[329501071,1718400662000,-641.21,0.00017808,2]
[329501072,1718400662024,-151.0,0.00017808,2]
[329501074,1718400662038,-151.0,0.00017808,2]
[329501075,1718400662053,-500.0,0.00017808,2]
[329501078,1718400662089,-1267.48,0.00017808,2]
[329501079,1718400662109,-500.0,0.00017808,2]
[329501082,1718400662140,-500.0,0.00017808,2]
[329501084,1718400662153,-500.0,0.00017808,2]
[329501086,1718400662166,-11284.21,0.00017808,2]
[329501088,1718400662205,-1269.9,0.00017808,2]
[329501089,1718400662225,-166.284063,0.00017808,2]
[329501091,1718400662238,-166.284063,0.00017808,2]
[329501093,1718400662254,-151.0,0.00017808,2]
[329501095,1718400662268,-500.0,0.00017808,2]
[329501098,1718400662280,-2680.54,0.00017808,2]
[329501099,1718400662300,-500.0,0.00017808,2]
[329501100,1718400662312,-1759.68,0.00017808,2]
[329501102,1718400662324,-151.0,0.00017808,2]
[329501104,1718400662345,-500.0,0.00017808,2]
[329501106,1718400662375,-1935.1,0.00017808,2]
[329501107,1718400662409,-549.51,0.00017808,2]
[329501109,1718400662437,-572.38,0.00017808,2]
[329501111,1718400662450,-568.56,0.00017808,2]
[329501113,1718400662492,-5639.22,0.00017808,2]
[329501115,1718400662514,-151.0,0.00017808,2]
[329501117,1718400662537,-1627.65,0.00017808,2]
[329501119,1718400662547,-500.0,0.00017808,2]
[329501121,1718400662605,-7432.62,0.00017808,2]
[329501123,1718400662617,-318.83320295,0.00017808,2]
[329501125,1718400662632,-500.0,0.00017808,2]
[329501127,1718400662645,-597.21,0.00017808,2]
[329501129,1718400662700,-151.0,0.00017808,2]
[329501130,1718400662713,-500.0,0.00017808,2]
[329501132,1718400662748,-549.95,0.00017808,2]
[329501135,1718400662779,-167.611858,0.00017808,2]
[329501136,1718400662813,-151.0,0.00017808,2]
[329501138,1718400662823,-151.0,0.00017808,2]
[329501141,1718400662837,-500.0,0.00017808,2]
[329501142,1718400662856,-167.611858,0.00017808,2]
[329501144,1718400662869,-4588.34,0.00017808,2]
[329501147,1718400662884,-151.0,0.00017808,2]
[329501148,1718400662916,-986.69,0.00017808,2]
[329501150,1718400662927,-500.84,0.00017808,2]
[329501151,1718400662954,-156.27169823,0.0001782,3]
[329501154,1718400662975,-216.0,0.00017886,2]
[329501155,1718400662986,-153.0,0.00017973,2]
[329501157,1718400662997,-153.0,0.00017973,2]
[329501160,1718400663016,-153.0,0.00017973,2]
[329501161,1718400663029,-153.0,0.00017973,2]
[329501163,1718400663056,-306.0,0.00017973,2]
[329501166,1718400663070,-1750.0,0.00017989,2]
[329501168,1718400663084,-499.0,0.00017989,2]
[329501170,1718400663107,-1995.59270983,0.00017999,2]
[329501172,1718400663118,-2441.7640895,0.00018,2]
[329501173,1718400663138,-1000.0,0.00018,5]
[329501176,1718400663160,-876.82850055,0.00018,2]
[329501178,1718400663237,-476.83649049,0.00018,2]
[329501179,1718400663255,-31900.31698394,0.00018,2]
[329501180,1718400663285,-1355.95807405,0.00018,2]
[329501183,1718400663347,-155.00310006,0.00018,2]
[329501185,1718400663381,-151.0,0.00018,2]
[329501187,1718400663411,-151.0,0.00018,2]
[329501189,1718400663428,-151.0,0.00018,2]
[329501190,1718400663450,-166.284063,0.00018,2]
[329501192,1718400663478,-166.284063,0.00018,2]
[329501194,1718400663489,-151.0,0.00018,2]
[329501198,1718400663557,-151.0,0.00018,2]
[329501200,1718400663586,-151.0,0.00018,2]
[329501202,1718400663607,-151.0,0.00018,2]
[329501205,1718400663623,-167.611858,0.00018,2]
[329501206,1718400663635,-151.0,0.00018,2]
[329501209,1718400663669,-151.0,0.00018,2]
[329501211,1718400663697,-167.611858,0.00018,2]
[329501213,1718400663722,-216.0,0.00018028,2]
[329501215,1718400663740,-151.0,0.00018028,2]
[329501216,1718400663750,-155.06838982,0.0001808,2]
[329501218,1718400663760,-500.0,0.00018082,2]
[329501220,1718400663770,-500.0,0.00018082,2]
[329501222,1718400663802,-500.0,0.00018082,2]
[329501224,1718400663817,-500.0,0.00018082,2]
[329501226,1718400663833,-500.0,0.00018082,2]
[329501228,1718400663852,-500.0,0.00018082,2]
[329501230,1718400663876,-500.0,0.00018082,2]
[329501231,1718400663896,-523.16,0.00018082,2]
[329501233,1718400663926,-500.0,0.00018082,2]
[329501235,1718400663959,-735.98,0.00018082,2]
[329501237,1718400664001,-1392.44,0.00018082,2]
[329501239,1718400664019,-641.21,0.00018082,2]
[329501241,1718400664036,-151.0,0.00018082,2]
[329501242,1718400664071,-151.0,0.00018082,2]
[329501245,1718400664106,-500.0,0.00018082,2]
[329501246,1718400664135,-1267.48,0.00018082,2]
[329501248,1718400664150,-500.0,0.00018082,2]
[329501251,1718400664204,-500.0,0.00018082,2]
[329501252,1718400664228,-500.0,0.00018082,2]
[329501254,1718400664243,-11284.21,0.00018082,2]
[329501256,1718400664259,-1269.9,0.00018082,2]
[329501258,1718400664292,-166.284063,0.00018082,2]
[329501260,1718400664312,-166.284063,0.00018082,2]
[329501262,1718400664346,-151.0,0.00018082,2]
[329501264,1718400664381,-500.0,0.00018082,2]
[329501266,1718400664395,-2680.54,0.00018082,2]
[329501267,1718400664412,-500.0,0.00018082,2]
[329501269,1718400664425,-1759.68,0.00018082,2]
[329501271,1718400664475,-151.0,0.00018082,2]
[329501272,1718400664500,-500.0,0.00018082,2]
[329501274,1718400664510,-1935.1,0.00018082,2]
[329501276,1718400664520,-549.51,0.00018082,2]
[329501278,1718400664540,-572.38,0.00018082,2]
[329501280,1718400664564,-568.56,0.00018082,2]
[329501282,1718400664579,-5639.22,0.00018082,2]
[329501284,1718400664593,-151.0,0.00018082,2]
[329501285,1718400664605,-1627.65,0.00018082,2]
[329501288,1718400664648,-500.0,0.00018082,2]
[329501290,1718400664663,-7432.62,0.00018082,2]
[329501291,1718400664677,-500.0,0.00018082,2]
[329501292,1718400664706,-597.21,0.00018082,2]
[329501294,1718400664736,-442.99688106,0.00018082,2]
[329501296,1718400664746,-549.95,0.00018082,2]
[329501299,1718400664760,-151.0,0.00018082,2]
[329501301,1718400664777,-167.611858,0.00018082,2]
[329501303,1718400664794,-500.0,0.00018082,2]
[329501306,1718400664816,-167.611858,0.00018082,2]
[329501307,1718400664856,-4588.34,0.00018082,2]
[329501310,1718400664898,-986.69,0.00018082,2]
[329501312,1718400664953,-500.84,0.00018082,2]
[329501314,1718400665006,-1000.0,0.000181,2]
[329501316,1718400665031,-600.0,0.00018125,2]
[329501317,1718400665070,-216.0,0.0001817,2]
[329501319,1718400665081,-151.0,0.0001817,2]
[329501321,1718400665108,-151.0,0.00018256,2]
[329501323,1718400665121,-151.0,0.00018256,2]
[329501325,1718400665149,-216.0,0.00018312,2]
[329501326,1718400665164,-151.0,0.00018312,2]
[329501328,1718400665175,-600.0,0.00018314,2]
[329501330,1718400665194,-621.94958627,0.00018351,2]
[329501332,1718400665231,-500.0,0.00018356,2]
[329501334,1718400665243,-500.0,0.00018356,2]
[329501336,1718400665263,-500.0,0.00018356,2]
[329501338,1718400665274,-500.0,0.00018356,2]
[329501340,1718400665302,-500.0,0.00018356,2]
[329501342,1718400665330,-523.16,0.00018356,2]
[329501344,1718400665345,-500.0,0.00018356,2]
[329501346,1718400665402,-735.98,0.00018356,2]
[329501347,1718400665431,-1392.44,0.00018356,2]
[329501349,1718400665473,-641.21,0.00018356,2]
[329501351,1718400665484,-151.0,0.00018356,2]
[329501353,1718400665497,-151.0,0.00018356,2]
[329501356,1718400665513,-500.0,0.00018356,2]
[329501357,1718400665534,-1267.48,0.00018356,2]
[329501359,1718400665545,-500.0,0.00018356,2]
[329501361,1718400665556,-500.0,0.00018356,2]
[329501362,1718400665567,-500.0,0.00018356,2]
[329501363,1718400665578,-11284.21,0.00018356,2]
[329501365,1718400665590,-1269.9,0.00018356,2]
[329501366,1718400665610,-166.284063,0.00018356,2]
[329501368,1718400665625,-166.284063,0.00018356,2]
[329501370,1718400665664,-151.0,0.00018356,2]
[329501371,1718400665680,-500.0,0.00018356,2]
[329501373,1718400665693,-1759.68,0.00018356,2]
[329501375,1718400665711,-151.0,0.00018356,2]
[329501378,1718400665739,-500.0,0.00018356,2]
[329501379,1718400665756,-1935.1,0.00018356,2]
[329501381,1718400665767,-549.51,0.00018356,2]
[329501384,1718400665792,-572.38,0.00018356,2]
[329501385,1718400665812,-568.56,0.00018356,2]
[329501387,1718400665826,-5639.22,0.00018356,2]
[329501389,1718400665850,-151.0,0.00018356,2]
[329501392,1718400665889,-1627.65,0.00018356,2]
[329501394,1718400665901,-500.0,0.00018356,2]
[329501395,1718400665912,-7432.62,0.00018356,2]
[329501397,1718400665924,-500.0,0.00018356,2]
[329501399,1718400665935,-597.21,0.00018356,2]
[329501401,1718400665970,-549.95,0.00018356,2]
[329501403,1718400665985,-151.0,0.00018356,2]
[329501404,1718400666007,-167.611858,0.00018356,2]
[329501405,1718400666030,-500.0,0.00018356,2]
[329501408,1718400666050,-167.611858,0.00018356,2]
[329501411,1718400666084,-4588.34,0.00018356,2]
[329501412,1718400666100,-986.69,0.00018356,2]
[329501415,1718400666128,-500.84,0.00018356,2]
[329501417,1718400666142,-155.00155002,0.0001844,2]
[329501419,1718400666154,-216.0,0.00018454,2]
[329501420,1718400666171,-151.0,0.00018454,2]
[329501423,1718400666204,-155.0,0.0001846,2]
[329501425,1718400666226,-6751.86493708,0.00018499,2]
[329501427,1718400666248,-600.0,0.00018502,2]
[329501431,1718400666291,-160.0,0.00018564,2]
[329501432,1718400666306,-216.0,0.00018596,2]
[329501434,1718400666328,-151.0,0.00018596,2]
[329501436,1718400666339,-1000.0,0.000186,2]
[329501438,1718400666365,-500.0,0.0001863,2]
[329501440,1718400666400,-500.0,0.0001863,2]
[329501442,1718400666421,-500.0,0.0001863,2]
[329501444,1718400666433,-419.86,0.0001863,2]
[329501447,1718400666456,-500.0,0.0001863,2]
[329501448,1718400666480,-523.16,0.0001863,2]
[329501451,1718400666512,-500.0,0.0001863,2]
[329501453,1718400666525,-735.98,0.0001863,2]
[329501455,1718400666536,-1392.44,0.0001863,2]
[329501457,1718400666548,-641.21,0.0001863,2]
[329501459,1718400666587,-151.0,0.0001863,2]
[329501461,1718400666606,-151.0,0.0001863,2]
[329501462,1718400666627,-500.0,0.0001863,2]
[329501464,1718400666642,-1267.48,0.0001863,2]
[329501466,1718400666659,-500.0,0.0001863,2]
[329501468,1718400666674,-364.16,0.0001863,2]
[329501469,1718400666688,-11284.21,0.0001863,2]
[329501471,1718400666701,-1269.9,0.0001863,2]
[329501473,1718400666712,-166.284063,0.0001863,2]
[329501475,1718400666745,-166.284063,0.0001863,2]
[329501476,1718400666760,-151.0,0.0001863,2]
[329501479,1718400666817,-500.0,0.0001863,2]
[329501481,1718400666828,-1759.68,0.0001863,2]
[329501483,1718400666839,-217.539594,0.0001863,2]
[329501485,1718400666851,-500.0,0.0001863,2]
[329501487,1718400666888,-1935.1,0.0001863,2]
[329501490,1718400666921,-549.51,0.0001863,2]
[329501492,1718400666947,-572.38,0.0001863,2]
[329501493,1718400666959,-568.56,0.0001863,2]
[329501495,1718400666993,-5639.22,0.0001863,2]
[329501496,1718400667005,-151.0,0.0001863,2]
[329501498,1718400667036,-1627.65,0.0001863,2]
[329501500,1718400667049,-500.0,0.0001863,2]
[329501502,1718400667066,-7432.62,0.0001863,2]
[329501504,1718400667078,-500.0,0.0001863,2]
[329501506,1718400667090,-597.21,0.0001863,2]
[329501508,1718400667104,-549.95,0.0001863,2]
[329501510,1718400667131,-151.0,0.0001863,2]
[329501512,1718400667143,-167.611858,0.0001863,2]
[329501514,1718400667162,-500.0,0.0001863,2]
[329501516,1718400667183,-167.611858,0.0001863,2]
[329501518,1718400667195,-4588.34,0.0001863,2]
[329501519,1718400667224,-986.69,0.0001863,2]
[329501521,1718400667237,-500.84,0.0001863,2]
[329501523,1718400667265,-250.0,0.0001863,2]
[329501525,1718400667283,-614.44831859,0.00018688,2]
[329501526,1718400667297,-45497.68339468,0.0001869,2]
[329501528,1718400667328,-151.0,0.0001869,2]
[329501530,1718400667384,-151.0,0.0001869,2]
[329501533,1718400667434,-166.284063,0.0001869,2]
[329501535,1718400667445,-166.284063,0.0001869,2]
[329501536,1718400667459,-151.0,0.0001869,2]
[329501538,1718400667475,-151.0,0.0001869,2]
[329501540,1718400667486,-171.887013,0.0001869,2]
[329501543,1718400667508,-167.611858,0.0001869,2]
[329501545,1718400667523,-167.611858,0.0001869,2]
[329501547,1718400667533,-600.0,0.00018691,2]
[329501549,1718400667553,-151.0,0.00018738,2]
[329501552,1718400667571,-173737.4865624,0.0001888,2]
[329501565,1718400667827,-261.81,0.0001888,2]
[329501867,1718401848866,-165.640992,0.00016164,2]
[329501868,1718401848878,-1200.85532152,0.00016337,4]
[329501933,1718401850614,-1920.68261207,0.00016337,4]
[329501935,1718401850625,-754.59044618,0.00016338,2]
[329501937,1718401850638,-300.0,0.00016437,2]
[329501938,1718401850664,-512.38342574,0.00016438,2]
[329501940,1718401850678,-500.0,0.00016438,2]
[329501942,1718401850690,-430.0848862,0.00016438,2]
[329501944,1718401850704,-500.0,0.00016438,2]
[329501946,1718401850716,-500.0,0.00016438,2]
[329501947,1718401850751,-500.0,0.00016438,2]
[329501950,1718401850768,-563.72800977,0.00016438,2]
[329501952,1718401850812,-500.0,0.00016438,2]
[329501954,1718401850867,-500.0,0.00016438,2]
[329501957,1718401850900,-500.0,0.00016438,2]
[329501959,1718401850913,-500.0,0.00016438,2]
[329501960,1718401850935,-500.0,0.00016438,2]
[329501962,1718401850946,-500.0,0.00016438,2]
[329501965,1718401850989,-500.0,0.00016438,2]
[329501967,1718401851019,-531.28434109,0.00016438,2]
[329501969,1718401851033,-500.0,0.00016438,2]
[329501971,1718401851050,-500.0,0.00016438,2]
[329501973,1718401851069,-225.00550076,0.00016438,2]
[329502008,1718401852094,-274.99449924,0.00016438,2]
[329502011,1718401852116,-500.0,0.00016438,2]
[329502013,1718401852150,-500.0,0.00016438,2]
[329502015,1718401852172,-500.0,0.00016438,2]
[329502017,1718401852185,-500.0,0.00016438,2]
[329502019,1718401852219,-500.0,0.00016438,2]
[329502022,1718401852238,-345.10201645,0.00016438,2]
[329502025,1718401852329,-154.89798355,0.00016438,2]
[329502028,1718401852346,-500.0,0.00016438,2]
[329502030,1718401852368,-500.0,0.00016438,2]
[329502032,1718401852384,-292.46719692,0.00016438,2]
[329502034,1718401852396,-500.0,0.00016438,2]
[329502036,1718401852412,-514.27,0.00016438,2]
[329502037,1718401852426,-500.0,0.00016438,2]
[329502040,1718401852444,-500.0,0.00016438,2]
[329502041,1718401852457,-500.0,0.00016438,2]
[329502043,1718401852471,-500.0,0.00016438,2]
[329502045,1718401852506,-500.0,0.00016438,2]
[329502046,1718401852534,-500.0,0.00016438,2]
[329502049,1718401852564,-500.0,0.00016438,2]
[329502052,1718401852605,-500.0,0.00016438,2]
[329502054,1718401852617,-500.0,0.00016438,2]
[329502056,1718401852650,-500.0,0.00016438,2]
[329502058,1718401852693,-500.0,0.00016438,2]
[329502060,1718401852708,-500.0,0.00016438,2]
[329502062,1718401852720,-248.59662374,0.00016438,2]
[329502063,1718401852736,-251.40337626,0.00016438,2]
[329502065,1718401852786,-500.0,0.00016438,2]
[329502067,1718401852806,-25.14949227,0.00016438,2]
[329502069,1718401852823,-480.17050773,0.00016438,2]
[329502071,1718401852837,-500.0,0.00016438,2]
[329502072,1718401852878,-621.83,0.00016438,2]
[329502075,1718401852908,-7321.49,0.00016438,2]
[329502077,1718401852945,-500.0,0.00016438,2]
[329502079,1718401852959,-500.0,0.00016438,2]
[329502082,1718401852970,-500.0,0.00016438,2]
[329502084,1718401852981,-500.0,0.00016438,2]
[329502085,1718401852992,-500.0,0.00016438,2]
[329502087,1718401853006,-1182.4,0.00016438,2]
[329502089,1718401853017,-500.0,0.00016438,2]
[329502091,1718401853034,-503.36417828,0.00016438,2]
[329502093,1718401853059,-1298.88,0.00016438,2]
[329502096,1718401853088,-1127.42,0.00016438,2]
[329502098,1718401853101,-500.0,0.00016438,2]
[329502100,1718401853113,-500.0,0.00016438,2]
[329502102,1718401853124,-500.0,0.00016438,2]
[329502104,1718401853135,-500.0,0.00016438,2]
[329502106,1718401853161,-500.0,0.00016438,2]
[329502107,1718401853185,-500.0,0.00016438,2]
[329502110,1718401853206,-500.0,0.00016438,2]
[329502111,1718401853217,-500.0,0.00016438,2]
[329502114,1718401853239,-500.0,0.00016438,2]
[329502116,1718401853259,-500.0,0.00016438,2]
[329502118,1718401853290,-3068.69,0.00016438,2]
[329502120,1718401853304,-637.07,0.00016438,2]
[329502122,1718401853361,-500.0,0.00016438,2]
[329502124,1718401853371,-569.95969663,0.00016438,2]
[329502126,1718401853385,-500.0,0.00016438,2]
[329502129,1718401853420,-500.0,0.00016438,2]
[329502130,1718401853436,-500.0,0.00016438,2]
[329502133,1718401853456,-500.0,0.00016438,2]
[329502135,1718401853481,-500.0,0.00016712,2]
[329502137,1718401853496,-322.50051869,0.00016712,2]
[329502138,1718401853524,-500.0,0.00016712,2]
[329502140,1718401853535,-500.0,0.00016712,2]
[329502141,1718401853548,-500.0,0.00016712,2]
[329502143,1718401853558,-500.0,0.00016712,2]
[329502146,1718401853572,-500.0,0.00016712,2]
[329502148,1718401853595,-500.0,0.00016712,2]
[329502150,1718401853607,-514.27,0.00016712,2]
[329502151,1718401853617,-500.0,0.00016712,2]
[329502153,1718401853631,-500.0,0.00016712,2]
[329502154,1718401853642,-500.0,0.00016712,2]
[329502157,1718401853666,-500.0,0.00016712,2]
[329502159,1718401853685,-500.0,0.00016712,2]
[329502161,1718401853710,-500.0,0.00016712,2]
[329502162,1718401853722,-500.0,0.00016712,2]
[329502164,1718401853738,-3832.69509864,0.00016712,2]
[329502171,1718401854006,-3488.79490136,0.00016712,2]
[329502174,1718401854074,-500.0,0.00016712,2]
[329502177,1718401854094,-500.0,0.00016712,2]
[329502179,1718401854140,-500.0,0.00016712,2]
[329502181,1718401854196,-1182.4,0.00016712,2]
[329502183,1718401854262,-500.0,0.00016712,2]
[329502186,1718401854297,-1298.88,0.00016712,2]
[329502188,1718401854340,-1127.42,0.00016712,2]
[329502189,1718401854352,-500.0,0.00016712,2]
[329502190,1718401854364,-500.0,0.00016712,2]
[329502192,1718401854403,-500.0,0.00016712,2]
[329502194,1718401854446,-500.0,0.00016712,2]
[329502199,1718401854560,-3068.69,0.00016712,2]
[329502201,1718401854576,-500.0,0.00016712,2]
[329502203,1718401854601,-500.0,0.00016712,2]
[329502204,1718401854614,-500.0,0.00016712,2]
[329502206,1718401854649,-500.0,0.00016712,2]
[329502208,1718401854696,-474.61097153,0.00016985,2]
[329502211,1718401854741,-500.0,0.00016985,2]
[329502213,1718401854764,-500.0,0.00016986,2]